bitfinex-derivatives/quotes_ETHF0:USTF0_20250730
["timestamp","ask_amount","ask_price","bid_price","bid_amount"]
[1753907402429,6.58646692,3770.2,3769.4,1.2781]
[1753907402430,3.2078,3769.5,3769.4,3.7558]
[1753907402626,3.2078,3769.5,3769.4,5.1934]
[1753907402826,3.2078,3769.9,3769.8,5.5507]
[1753907403031,3.2078,3769.9,3769.8,6.116]
[1753907403233,3.2078,3769.9,3769.8,4.8379]
[1753907403436,3.2078,3770.3,3770.2,2.4777]
[1753907403745,19.197,3770.6,3770.5,3.6383]
[1753907403941,3.2078,3771.6,3771.0,0.9317]
[1753907404233,6.15764,3771.6,3771.5,6.116]
[1753907404442,6.15974,3771.6,3771.5,0.9226]
[1753907404938,3.74594,3771.6,3771.5,4.6784]
[1753907405137,3.2078,3771.6,3771.5,6.116]
[1753907406031,0.53028,3772.1,3772.0,1.497]
[1753907406234,0.53028,3772.1,3772.0,6.116]
[1753907406437,2.95188,3772.1,3772.0,3.3409]
[1753907406640,2.95188,3772.1,3772.0,0.9226]
[1753907407137,0.53028,3772.1,3772.0,6.116]
[1753907407334,1.48218,3772.1,3772.0,6.116]
[1753907407539,2.95188,3772.1,3772.0,6.116]
[1753907408238,2.95188,3772.1,3772.0,0.9226]
[1753907408441,2.95192,3771.7,3771.6,5.1934]
[1753907408641,6.9115356,3771.7,3771.6,5.1934]
[1753907408839,6.9115356,3771.7,3771.6,6.116]
[1753907409144,3.2078,3771.7,3771.6,6.116]
[1753907409337,3.73812,3771.7,3771.6,6.116]
[1753907409537,5.6216,3771.7,3771.6,6.116]
[1753907409740,5.6237,3771.7,3771.6,6.116]
[1753907410138,7.8580418,3771.7,3771.6,1.58381]
[1753907410339,2.834,3771.5,3770.9,0.53043]
[1753907410541,3.2078,3771.7,3771.6,2.4777]
[1753907410742,3.95965077,3771.7,3771.6,2.4777]
[1753907411143,0.75185077,3771.7,3771.6,2.4777]
[1753907411437,21.26118,3772.1,3771.6,2.4777]
[1753907411438,0.53029,3772.0,3771.6,3.00803]
[1753907411635,0.75183154,3771.9,3771.8,2.4777]
[1753907411834,0.75182531,3771.9,3771.8,2.4777]
[1753907412038,19.79928,3772.1,3771.8,2.4777]
[1753907412233,0.75182627,3772.0,3771.9,5.1934]
[1753907412435,0.75182627,3772.0,3771.9,6.116]
[1753907412944,19.238,3772.3,3772.2,2.4777]
[1753907413142,0.75199852,3772.3,3772.2,6.116]
[1753907413346,0.75199852,3772.3,3771.9,6.116]
[1753907413347,0.53028,3772.1,3771.9,6.116]
[1753907413539,0.75199852,3772.0,3771.9,2.4777]
[1753907413942,1.99215,3772.3,3772.2,2.4777]
[1753907414145,1.99215,3772.3,3772.2,6.116]
[1753907414448,0.53023,3772.4,3772.2,6.116]
[1753907414643,0.53023,3772.4,3772.3,6.116]
[1753907414841,2.06153,3772.4,3772.3,6.116]
[1753907415043,5.79843,3772.4,3772.3,6.116]
[1753907415244,3.38463,3772.4,3772.3,6.116]
[1753907415544,5.79843,3772.4,3772.3,6.116]
[1753907416544,2.06152,3772.5,3772.4,5.1843]
[1753907416741,5.79842,3772.5,3772.4,4.6784]
[1753907416949,6.71022,3772.5,3772.4,6.116]
[1753907417743,19.234,3772.6,3772.5,6.64621]
[1753907418051,24.85,3772.7,3772.6,6.116]
[1753907418347,28.5958,3772.7,3772.6,6.116]
[1753907418849,26.2221,3772.7,3772.6,6.116]
[1753907419645,27.684,3772.7,3772.6,6.116]
[1753907419848,26.2221,3772.7,3772.6,6.116]
[1753907420050,5.642,3773.1,3773.0,2.4777]
[1753907420347,2.4342,3772.2,3772.1,3.9153]
[1753907420551,4.7181,3772.2,3772.1,2.4777]
[1753907420752,6.18,3772.2,3772.1,4.6784]
[1753907421050,5.2682,3772.2,3772.1,6.116]
[1753907421451,1.44202,3772.5,3772.3,6.116]
[1753907421452,4.42633,3772.4,3772.3,6.116]
[1753907421645,1.4619,3772.8,3772.6,6.116]
[1753907421957,3.8961,3772.8,3772.7,6.116]
[1753907422252,5.2682,3772.8,3772.7,6.116]
[1753907422443,2.9932,3772.8,3772.7,6.116]
[1753907422647,2.4342,3773.3,3773.2,3.9153]
[1753907422845,3.18730371,3773.3,3773.2,3.9153]
[1753907423145,3.18730371,3773.3,3773.2,4.44541]
[1753907423345,2.4342,3773.3,3773.2,6.64611]
[1753907423754,6.56,3773.7,3773.6,6.116]
[1753907424050,7.31292475,3773.7,3773.6,4.6784]
[1753907424450,7.31292475,3773.7,3773.6,6.116]
[1753907425150,6.40112475,3773.7,3773.6,6.116]
[1753907425350,5.6482,3773.7,3773.6,6.116]
[1753907428042,6.56,3773.7,3773.6,6.116]
[1753907431343,0.38,3773.7,3773.1,0.53012]
[1753907431546,0.9927,3773.2,3773.1,6.62492]
[1753907431748,0.9927,3773.4,3773.3,6.0948]
[1753907432356,1.5956,3773.4,3773.3,6.0948]
[1753907432846,2.4785,3773.4,3773.3,6.0948]
[1753907433052,6.2368,3773.4,3773.3,3.3199]
[1753907433451,6.2368,3773.4,3773.3,4.6323]
[1753907433756,6.2368,3773.4,3773.3,6.0948]
[1753907434155,1.41548,3773.5,3773.4,6.0948]
[1753907434355,5.27868,3773.5,3773.4,6.0948]
[1753907434653,6.76688,3773.5,3773.4,6.0948]
[1753907434953,6.76688,3773.5,3773.4,4.6323]
[1753907435153,6.76688,3773.5,3773.4,1.4664]
[1753907436555,3.61397,3772.9,3772.8,4.6323]
[1753907436749,5.88157,3772.9,3772.8,4.6323]
[1753907437056,4.0932,3773.2,3772.4,2.3454]
[1753907437057,4.7486,3772.5,3772.4,2.3454]
[1753907437248,6.2368,3772.5,3772.4,4.6323]
[1753907437444,6.2368,3772.5,3772.4,6.0948]
[1753907438151,5.3514,3772.5,3772.4,6.0948]
[1753907441957,3.00871,3772.5,3772.4,2.7749]
[1753907442159,6.76701,3772.5,3772.4,6.0948]
[1753907442457,6.76701,3772.5,3772.4,6.62502]
[1753907442953,0.53025,3772.2,3772.1,1.4625]
[1753907443155,6.2368,3772.1,3772.0,6.0948]
[1753907443848,6.2368,3772.1,3772.0,6.62508]
[1753907444054,3.3639,3771.7,3771.6,6.0948]
[1753907444247,3.3639,3771.6,3771.5,6.9611]
[1753907444461,2.4785,3771.6,3771.5,8.4236]
[1753907444961,2.4785,3771.6,3771.5,9.3026]
[1753907445353,5.6863,3772.2,3772.1,3.85017]
[1753907445561,3.2078,3772.2,3772.1,6.62507]
[1753907446053,5.3514,3772.2,3772.1,6.62507]
[1753907446359,0.53025,3772.3,3771.6,6.62514]
[1753907446360,5.3514,3771.7,3771.6,6.62514]
[1753907447059,2.4785,3771.7,3771.6,6.62514]
[1753907447558,3.2078,3772.3,3772.1,0.53027]
[1753907447559,1.4882,3772.2,3772.1,0.53027]
[1753907447761,8.5592,3772.3,3772.2,6.0948]
[1753907448062,9.4446,3772.3,3772.2,6.0948]
[1753907448655,6.2368,3772.3,3772.2,6.0948]
[1753907448860,5.3514,3772.3,3772.2,6.0948]
[1753907449763,6.2368,3772.3,3772.2,6.0948]
[1753907456470,2.4785,3772.6,3772.5,2.9711]
[1753907456666,6.767,3772.6,3772.5,6.0948]
[1753907457063,6.767,3772.6,3772.5,3.3199]
[1753907457264,6.767,3772.6,3772.5,2.3454]
[1753907459574,6.2368,3772.6,3772.5,2.3454]
[1753907460073,6.76701,3772.6,3772.4,0.53022]
[1753907460291,6.63153,3772.5,3772.4,6.25]
[1753907460969,0.53028,3772.1,3772.0,0.8792]
[1753907461175,4.6576,3772.0,3771.9,4.27139]
[1753907461377,6.1013,3772.0,3771.9,4.27139]
[1753907461575,5.1706,3772.0,3771.6,2.94513]
[1753907461873,6.1013,3771.7,3771.6,6.78033]
[1753907462072,6.1013,3771.7,3771.0,23.44585]
[1753907462073,1.52466,3771.5,3771.4,2.5089]
[1753907462279,5.18796,3771.5,3771.4,4.7144]
[1753907462779,6.63166,3771.5,3771.4,6.25]
[1753907462976,6.1013,3771.5,3771.4,6.25]
[1753907463282,6.63161,3771.8,3771.7,3.3576]
[1753907463674,6.1013,3771.8,3771.7,6.25]
[1753907463876,3.7269,3772.1,3772.0,5.90108]
[1753907464080,3.2078,3772.7,3772.2,2.4784]
[1753907464281,5.1706,3772.4,3772.3,6.78023]
[1753907464777,1.46091,3772.5,3772.3,6.78023]
[1753907464778,5.70081,3772.5,3772.4,6.25]
[1753907465081,6.1013,3772.5,3772.4,6.25]
[1753907469488,2.459,3772.0,3771.6,3.7716]
[1753907469689,2.459,3772.0,3771.5,1.32589]
[1753907469690,2.459,3772.0,3771.9,2.3843]
[1753907469985,2.459,3772.0,3771.3,4.087]
[1753907470183,6.1013,3771.9,3771.8,0.53031]
[1753907470378,6.1013,3771.9,3771.8,2.3843]
[1753907470582,6.1013,3771.9,3771.4,1.32594]
[1753907470583,6.1013,3771.4,3771.0,0.8792]
[1753907470787,6.1013,3771.0,3770.9,3.2078]
[1753907470990,6.1013,3771.0,3770.9,3.8238]
[1753907471185,6.1013,3771.0,3770.9,5.5921]
[1753907471490,6.1013,3771.0,3770.9,2.3843]
[1753907471687,6.1013,3771.0,3770.9,4.7144]
[1753907471890,3.7269,3771.0,3770.9,6.25]
[1753907472084,5.1706,3771.4,3771.3,6.25]
[1753907472279,0.8958,3771.4,3771.3,6.25]
[1753907472585,2.459,3772.0,3771.9,3.0087]
[1753907472786,0.76098984,3772.0,3771.9,6.7803]
[1753907472984,6.1013,3772.3,3772.2,6.25]
[1753907473186,0.76094983,3772.3,3772.2,6.25]
[1753907473982,4.15617337,3773.0,3772.9,2.4784]
[1753907473983,5.6668,3773.0,3772.9,2.4784]
[1753907474188,9.32315436,3773.0,3772.9,6.25]
[1753907474393,10.25385436,3773.0,3772.9,6.25]
[1753907474585,7.04605436,3773.0,3772.9,6.25]
[1753907474781,7.04605436,3773.0,3772.9,6.78016]
[1753907474985,7.04605436,3773.0,3772.9,6.25]
[1753907475287,6.86222578,3773.0,3772.9,6.25]
[1753907476192,6.1013,3773.0,3772.9,6.25]
[1753907477985,5.1706,3773.0,3772.9,6.25]
[1753907478190,3.7269,3773.3,3773.2,4.36532]
[1753907478490,3.2078,3773.6,3773.2,6.78012]
[1753907478684,0.38,3773.7,3773.6,4.014]
[1753907478883,0.56374604,3773.7,3773.6,6.25]
[1753907479092,0.5637433,3773.7,3773.6,6.25]
[1753907479393,0.38,3773.7,3773.6,6.25]
[1753907480984,0.56360874,3773.7,3773.6,6.25]
[1753907481389,2.12680874,3773.7,3773.6,6.25]
[1753907481990,5.73420874,3773.7,3773.6,6.25]
[1753907483185,2.459,3773.5,3773.4,3.3576]
[1753907483389,6.28490874,3773.5,3773.4,4.7144]
[1753907483692,6.28490874,3773.5,3773.4,6.25]
[1753907484094,5.35420874,3773.5,3773.4,6.25]
[1753907484496,4.08630874,3773.5,3773.4,6.25]
[1753907485492,0.18360874,3773.5,3773.4,6.25]
[1753907485697,3.9027,3774.8,3774.7,6.25]
[1753907485995,6.11217367,3774.8,3774.7,6.25]
[1753907486194,6.28483468,3774.8,3774.7,6.25]
[1753907486396,6.28483468,3774.8,3774.7,4.7144]
[1753907487090,6.28475917,3774.8,3774.7,6.25]
[1753907487398,6.1013,3774.8,3774.7,6.25]
[1753907487693,2.459,3774.8,3774.7,6.25]
[1753907487896,5.1706,3774.8,3774.7,6.25]
[1753907488093,6.1013,3774.8,3774.7,6.25]
[1753907489997,3.8167,3774.3,3774.2,5.43597]
[1753907490198,5.1537,3774.3,3774.2,6.77997]
[1753907490593,3.8167,3774.3,3774.2,6.77997]
[1753907490792,6.0654,3774.3,3774.0,3.7378]
[1753907490993,6.0654,3774.2,3774.1,1.5149]
[1753907491193,6.0654,3774.2,3774.1,2.4086]
[1753907491493,6.0654,3774.2,3774.1,0.5893]
[1753907491891,6.0654,3773.9,3773.8,2.4086]
[1753907492092,6.0654,3773.9,3773.8,6.25]
[1753907492896,6.0654,3773.9,3773.8,1.483]
[1753907494099,6.0654,3773.9,3773.8,2.4086]
[1753907494298,6.0654,3773.9,3773.8,0.5893]
[1753907494692,6.0654,3773.9,3773.8,3.3648]
[1753907495198,6.0654,3773.9,3773.8,4.7088]
[1753907496697,3.8167,3773.9,3773.5,0.9256]
[1753907496998,3.2078,3774.1,3773.0,3.89496]
[1753907496999,2.3644,3773.1,3773.0,3.89496]
[1753907497202,2.3644,3773.4,3773.3,0.5301]
[1753907497396,5.1537,3773.4,3773.3,6.7801]
[1753907498094,2.1816,3774.1,3774.0,4.906]
[1753907498300,6.0654,3774.2,3774.1,4.906]
[1753907498703,6.0654,3774.2,3774.1,6.25]
[1753907500296,3.2078,3774.5,3774.4,4.906]
[1753907500598,3.2078,3774.5,3774.4,6.25]
[1753907500599,4.7276,3774.5,3774.4,6.25]
[1753907500796,5.5722,3774.5,3774.4,6.25]
[1753907500995,8.3615,3774.5,3774.4,6.77996]
[1753907501196,8.3615,3774.5,3774.4,6.25]
[1753907501802,5.5722,3774.5,3774.4,6.25]
[1753907502291,3.701,3774.8,3774.5,0.52994]
[1753907502492,1.404,3774.8,3774.7,3.3648]
[1753907502696,5.5722,3775.0,3774.9,2.4392]
[1753907502898,8.3615,3775.0,3774.9,6.25]
[1753907503120,3.2078,3775.4,3775.3,2.37973]
[1753907503296,1.337,3776.0,3775.8,4.31296]
[1753907503507,4.3091,3776.0,3775.9,6.25]
[1753907503697,1.70505088,3776.0,3775.9,6.25]
[1753907503904,2.54965088,3776.0,3775.9,6.25]
[1753907504201,0.18525088,3776.0,3775.9,6.77976]
[1753907504405,0.38,3776.7,3776.6,6.77966]
[1753907504702,38.169,3778.5,3777.5,6.25]
[1753907504703,6.0654,3777.6,3777.5,6.25]
[1753907504904,6.0654,3777.6,3777.1,6.093]
[1753907505106,2.3644,3777.4,3777.3,4.7088]
[1753907505303,2.3644,3777.4,3777.3,6.25]
[1753907505810,5.1537,3777.4,3777.3,6.25]
[1753907505999,6.0654,3777.4,3777.3,6.25]
[1753907506396,6.82344548,3777.4,3777.3,6.25]
[1753907507005,8.24536159,3777.4,3777.3,6.25]
[1753907508205,8.24536159,3777.4,3777.3,4.7088]
[1753907508902,8.24536159,3777.4,3777.3,6.25]
[1753907509210,8.24536159,3777.4,3776.7,0.52964]
[1753907509211,1.404,3777.1,3777.0,3.3648]
[1753907509411,7.35303548,3777.1,3777.0,3.3648]
[1753907509600,8.24245025,3777.1,3777.0,3.3648]
[1753907509803,11.45025025,3777.1,3777.0,2.4086]
[1753907510000,0.5594,3776.7,3776.6,1.5149]
[1753907510306,7.35309548,3776.7,3776.0,4.34054]
[1753907510512,7.76965014,3776.6,3776.5,0.5893]
[1753907510714,6.0654,3776.6,3776.5,0.5893]
[1753907511213,6.0654,3776.6,3776.5,4.7088]
[1753907511406,6.0654,3776.6,3776.5,3.3648]
[1753907511708,1.5198,3776.0,3775.9,0.9562]
[1753907511898,2.3644,3775.7,3775.6,4.7088]
[1753907512103,6.0654,3775.7,3775.6,6.25]
[1753907512303,5.1537,3775.7,3775.6,6.25]
[1753907512510,2.7893,3776.2,3775.3,3.2078]
[1753907512811,5.1537,3776.2,3776.1,6.25]
[1753907513211,6.0654,3776.2,3776.1,6.25]
[1753907513508,6.0654,3776.2,3776.1,4.7088]
[1753907513907,1.805,3776.2,3776.1,6.25]
[1753907514109,4.5943,3776.2,3776.1,6.25]
[1753907514310,5.68342,3776.2,3776.1,6.25]
[1753907514607,6.59512,3776.2,3776.1,6.25]
[1753907515008,2.89418,3775.9,3775.8,2.4392]
[1753907515312,9.80298,3775.9,3775.8,4.7088]
[1753907515511,9.2732,3775.9,3775.8,6.25]
[1753907516807,9.2732,3775.9,3775.8,3.3648]
[1753907517012,3.8838,3775.6,3775.5,6.25]
[1753907517210,6.0654,3775.6,3775.5,6.25]
[1753907519409,4.0029,3775.1,3775.0,4.8352]
[1753907519612,4.0029,3775.1,3775.0,6.1302]
[1753907519814,4.0029,3775.1,3775.0,6.66008]
[1753907520210,2.4613,3775.1,3775.0,6.66008]
[1753907520410,2.872,3775.3,3775.2,5.36507]
[1753907520613,6.2308,3775.3,3775.2,3.6343]
[1753907520814,6.2308,3775.3,3775.2,1.4408]
[1753907521113,6.2308,3775.3,3775.2,4.6633]
[1753907521312,6.2308,3775.3,3775.2,6.1302]
[1753907522710,5.3237,3775.3,3775.2,6.1302]
[1753907523413,5.3237,3775.3,3775.2,4.6633]
[1753907523614,5.3237,3775.3,3775.2,6.1302]
[1753907524516,0.21374792,3776.3,3776.1,0.52975]
[1753907524821,6.2308,3776.3,3776.2,4.8352]
[1753907525009,7.1641925,3776.3,3776.2,1.4408]
[1753907525411,7.1641925,3776.3,3776.2,6.1302]
[1753907526212,7.1642349,3776.3,3776.2,5.1012]
[1753907526412,2.4613,3775.6,3775.5,2.99961]
[1753907526613,5.3237,3775.6,3775.5,6.66001]
[1753907527716,4.0029,3775.6,3775.5,6.66001]
[1753907528613,3.7821,3775.6,3775.5,6.66001]
[1753907528816,6.2308,3775.6,3775.5,6.66001]
[1753907529213,5.3237,3775.6,3775.5,6.66001]
[1753907530915,5.3237,3775.6,3775.5,1.42831]
[1753907531115,6.2308,3775.6,3775.5,6.66001]
[1753907532614,3.7695,3775.6,3774.8,1.29586678]
[1753907532816,2.4613,3774.9,3774.8,5.76250678]
[1753907533015,5.3237,3775.2,3775.1,2.9997]
[1753907533219,5.3237,3775.2,3775.1,6.6601]
[1753907533819,6.2308,3775.2,3775.1,6.1302]
[1753907534415,6.2308,3774.9,3774.3,0.8985]
[1753907534617,6.2308,3774.4,3774.3,0.8985]
[1753907534818,2.4613,3774.1,3774.0,5.19335]
[1753907535025,6.2308,3774.1,3774.0,4.6633]
[1753907535225,6.2308,3774.1,3774.0,6.1302]
[1753907535724,5.3237,3774.1,3774.0,6.1302]
[1753907540025,6.2308,3774.1,3774.0,6.1302]
[1753907540322,6.2308,3773.8,3773.7,1.4785]
[1753907540629,6.2308,3773.8,3773.7,3.3683]
[1753907540822,6.2308,3773.8,3773.7,4.6633]
[1753907541022,6.2308,3773.8,3773.7,6.1302]
[1753907542527,5.3237,3773.8,3773.7,6.1302]
[1753907544326,3.2078,3774.2,3774.1,2.99985]
[1753907544631,4.1613,3774.2,3774.1,6.66025]
[1753907544927,0.9535,3774.2,3774.1,6.66025]
[1753907545131,2.4613,3774.4,3774.3,2.99982]
[1753907545429,6.2308,3774.4,3774.3,6.66022]
[1753907545626,3.2078,3774.7,3774.6,6.66019]
[1753907546424,5.6691,3774.7,3774.6,6.66019]
[1753907546723,3.2078,3774.7,3773.9,4.1063]
[1753907546922,1.3208,3774.4,3773.6,1.42862]
[1753907547127,6.2308,3773.8,3773.7,2.5075]
[1753907547322,6.2308,3773.8,3773.7,3.3683]
[1753907547518,6.2308,3773.8,3773.7,4.6633]
[1753907547724,2.4613,3774.2,3774.1,1.11005]
[1753907548027,6.2308,3774.2,3774.1,3.3683]
[1753907548223,2.4613,3774.2,3773.9,1.4669]
[1753907548523,6.2308,3774.0,3773.9,3.47548]
[1753907548728,6.2308,3774.0,3773.9,1.4785]
[1753907550028,6.2308,3774.0,3773.9,2.3393]
[1753907550332,6.2308,3774.0,3773.9,6.0807]
[1753907551132,6.2308,3774.0,3773.9,3.3074]
[1753907552625,6.2308,3774.0,3773.9,0.8985]
[1753907552827,6.1553,3773.6,3773.5,2.85843]
[1753907553235,6.1553,3773.6,3773.5,5.12093]
[1753907553426,6.1553,3773.6,3773.5,6.59983]
[1753907553733,5.2374,3773.6,3773.5,6.59983]
[1753907554225,1.3621,3773.9,3773.8,2.3786]
[1753907554421,5.2374,3774.1,3774.0,3.82647]
[1753907554732,5.2374,3774.1,3774.0,6.59977]
[1753907556236,3.2078,3774.2,3774.1,6.0697]
[1753907556529,7.0831,3774.2,3774.1,6.0697]
[1753907557031,8.4452,3774.2,3774.1,6.0697]
[1753907557928,3.2078,3774.2,3774.1,6.0697]
[1753907558127,4.7272,3774.2,3774.1,6.0697]
[1753907558329,5.5838,3774.2,3774.1,6.0697]
[1753907558530,3.2078,3774.2,3774.1,6.0697]
[1753907559629,5.5838,3774.2,3774.1,6.0697]
[1753907560023,8.4452,3774.2,3774.1,6.0697]
[1753907560228,3.2078,3774.2,3774.1,6.0697]
[1753907565235,6.9459,3774.6,3774.5,6.0697]
[1753907565434,3.2078,3774.6,3774.5,6.0697]
[1753907566529,4.7272,3774.6,3774.5,6.0697]
[1753907566731,2.376,3774.7,3774.6,2.0664]
[1753907566936,5.2374,3774.7,3774.6,6.5997]
[1753907567338,6.1553,3774.7,3774.6,6.5997]
[1753907569145,5.2374,3774.7,3774.6,6.5997]
[1753907570040,3.7381,3774.7,3774.6,6.5997]
[1753907571142,5.2374,3774.7,3774.6,6.5997]
[1753907571334,6.1553,3774.7,3774.6,6.5997]
[1753907575348,8.4452,3775.0,3774.9,6.59964]
[1753907575544,9.3631,3775.0,3774.9,6.59964]
[1753907575752,3.2078,3775.0,3774.9,6.59964]
[1753907575952,8.4452,3775.0,3774.9,6.59964]
[1753907576146,9.3631,3775.0,3774.9,6.59964]
[1753907578058,8.4452,3775.0,3774.9,6.59964]
[1753907579059,8.4452,3775.0,3774.9,6.0697]
[1753907579254,9.3653,3775.0,3774.9,6.0697]
[1753907589072,9.4808,3775.6,3775.5,6.50497]
[1753907589274,10.24261174,3775.6,3775.5,6.50497]
[1753907590468,10.24261174,3775.6,3775.5,5.08647]
[1753907591169,6.51991174,3775.6,3775.0,1.32486]
[1753907591376,4.8151,3775.1,3775.0,0.52994]
[1753907591568,6.273,3775.1,3775.0,0.52994]
[1753907591769,6.273,3775.1,3774.9,0.52995]
[1753907591770,0.9201,3775.0,3774.9,0.52995]
[1753907591970,6.273,3775.0,3774.9,0.52995]
[1753907592673,6.273,3775.0,3774.9,1.37255]
[1753907593068,6.273,3775.0,3774.9,0.52995]
[1753907593873,6.273,3775.0,3774.9,1.37255]
[1753907594769,6.273,3775.0,3774.9,2.83205]
[1753907594969,6.273,3775.0,3774.9,6.50505]
[1753907595675,6.273,3775.0,3774.9,0.52995]
[1753907596475,7.03578843,3775.0,3774.9,0.52995]
[1753907598377,0.52998,3774.8,3774.5,0.53]
[1753907598566,0.52998,3774.8,3773.9,2.63043]
[1753907598567,2.5503,3774.0,3773.9,5.0867]
[1753907598769,6.6782,3774.3,3774.2,0.53006]
[1753907598975,3.4704,3774.3,3774.2,6.50516]
[1753907599575,5.3529,3774.3,3774.2,6.50516]
[1753907599775,6.273,3774.3,3774.2,6.50516]
[1753907601580,9.4808,3774.3,3774.2,6.50516]
[1753907603387,9.4808,3774.3,3774.1,0.53006]
[1753907603687,3.7227,3774.1,3773.5,1.32538]
[1753907603881,6.273,3773.6,3773.5,2.93895]
[1753907604484,6.273,3773.6,3773.5,6.50525]
[1753907604884,6.273,3773.6,3773.5,3.78155]
[1753907605276,6.273,3773.6,3773.5,6.50525]
[1753907608990,1.565,3773.2,3773.1,1.501]
[1753907609290,6.0238,3773.2,3773.1,6.44541]
[1753907611289,3.8335,3773.2,3773.0,0.53022]
[1753907611492,0.53018,3773.3,3773.0,0.53022]
[1753907611493,6.0238,3773.1,3773.0,0.53022]
[1753907611785,6.0238,3773.0,3772.9,0.53023]
[1753907612179,2.96475,3773.0,3772.7,0.53028]
[1753907612384,2.4345,3772.8,3772.7,0.53028]
[1753907612584,6.0238,3772.8,3772.7,1.09658]
[1753907612791,6.0238,3772.8,3772.7,6.44548]
[1753907613988,6.0238,3772.8,3772.7,3.74458]
[1753907614387,6.0238,3772.8,3772.7,6.44548]
[1753907615389,6.0238,3772.4,3772.3,2.6926]
[1753907615591,9.2316,3772.4,3772.0,1.2597]
[1753907615895,3.3393,3772.1,3772.0,0.5663]
[1753907616092,6.0238,3772.1,3772.0,0.5663]
[1753907616289,6.0238,3771.9,3771.8,0.39768283]
[1753907616496,9.2316,3771.9,3771.8,0.39768283]
[1753907617000,9.2316,3771.9,3771.8,0.92809283]
[1753907617286,9.2316,3771.9,3771.8,6.84329283]
[1753907618292,6.0238,3771.9,3771.8,6.84329283]
[1753907619690,3.2078,3772.3,3772.1,0.53037]
[1753907619895,3.2078,3772.3,3772.2,5.9152]
[1753907620288,2.2685,3772.9,3772.8,0.8666]
[1753907620490,2.2685,3772.9,3771.9,4.5338]
[1753907620491,21.0895,3772.9,3772.4,2.7009]
[1753907620689,5.6423,3772.6,3772.5,1.0966]
[1753907620897,6.9278,3772.6,3772.5,6.4455]
[1753907621291,8.3268,3772.6,3772.5,6.4455]
[1753907621589,5.9367,3772.6,3772.5,6.4455]
[1753907621995,8.3268,3772.6,3772.5,6.4455]
[1753907622195,9.2316,3772.6,3772.5,6.4455]
[1753907622698,6.9278,3772.6,3772.5,6.4455]
[1753907623096,5.6423,3772.6,3772.5,6.4455]
[1753907623491,5.119,3772.6,3772.5,6.4455]
[1753907623691,9.2316,3772.6,3772.5,5.0043]
[1753907624689,3.2078,3772.6,3772.5,5.0043]
[1753907624896,4.6512,3772.6,3772.5,6.4455]
[1753907625493,2.4345,3772.6,3772.5,6.4455]
[1753907625695,21.3819,3772.9,3772.8,6.44547]
[1753907625895,23.3913,3772.9,3772.8,6.44547]
[1753907626199,24.6768,3772.9,3772.8,6.44547]
[1753907626704,23.769,3772.9,3772.8,6.44547]
[1753907627203,24.6738,3772.9,3772.8,6.44547]
[1753907628394,0.53027,3772.8,3772.5,0.53031]
[1753907628593,4.6248,3772.5,3772.4,0.53032]
[1753907628904,6.0238,3772.5,3772.4,1.94332]
[1753907629095,24.6718,3772.5,3772.4,3.74462]
[1753907629497,6.0238,3772.5,3772.4,6.44552]
[1753907629697,24.6708,3772.5,3772.4,6.44552]
[1753907630504,24.6708,3772.5,3772.4,5.9152]
[1753907639513,22.367,3772.5,3772.4,5.9152]
[1753907639714,24.7692,3772.5,3772.4,5.9152]
[1753907640407,3.2078,3772.6,3772.4,5.9152]
[1753907640608,21.8448,3772.6,3772.5,6.70391]
[1753907640817,18.637,3772.6,3772.5,6.70391]
[1753907641815,21.6971,3772.6,3772.5,6.70391]
[1753907642110,23.0145,3772.6,3772.5,6.70391]
[1753907642614,18.637,3772.6,3772.5,6.70391]
[1753907643003,23.8631,3772.6,3772.5,6.70391]
[1753907647115,23.8571,3772.6,3772.5,6.70391]
[1753907647613,27.9858,3772.6,3772.5,6.70391]
[1753907648818,27.9858,3772.6,3772.5,3.5976]
[1753907649014,27.9858,3772.6,3772.5,2.2893]
[1753907650117,27.9858,3772.6,3772.5,3.5976]
[1753907650310,27.9858,3772.6,3772.5,6.1736]
[1753907651009,27.9858,3772.6,3772.5,1.446]
[1753907652616,27.9858,3772.6,3772.5,2.7543]
[1753907653617,27.9858,3772.6,3772.5,1.446]
[1753907655918,27.9858,3772.6,3772.3,1.83863]
[1753907656120,6.147,3772.3,3772.2,2.81965]
[1753907656418,24.767,3772.3,3772.2,4.12795]
[1753907656821,24.767,3772.3,3771.3,3.2078]
[1753907656822,2.4022,3772.2,3771.4,1.5425]
[1753907657117,6.147,3771.9,3771.7,0.53041]
[1753907657319,24.766,3771.9,3771.6,0.8667]
[1753907657520,24.766,3771.9,3771.6,1.39713]
[1753907657716,25.5291927,3771.9,3771.3,0.53047]
[1753907658022,25.5291927,3771.9,3771.6,1.39713]
[1753907658221,25.5291927,3771.9,3771.6,0.8667]
[1753907662324,24.766,3771.9,3771.6,0.8667]
[1753907663120,24.766,3771.9,3771.2,0.53049]
[1753907663421,1.5788,3770.8,3770.7,3.49566]
[1753907663615,5.2261,3770.8,3770.7,4.52916]
[1753907663819,5.2261,3770.8,3770.7,2.81986]
[1753907664018,6.147,3770.8,3770.7,5.16166]
[1753907664219,5.2261,3770.8,3770.7,6.70416]